bitfinex-derivatives/quotes_ETHF0:USTF0_20251210
["timestamp","ask_amount","ask_price","bid_price","bid_amount"]
[1765334148206,1.83682114,3310.0,3309.9,0.67477548]
[1765334148401,1.83682114,3310.0,3309.9,0.00217548]
[1765334148606,1.83682114,3310.0,3309.9,0.67477548]
[1765334148803,1.83682114,3310.0,3309.9,1.35487548]
[1765334149606,1.4041,3309.3,3309.1,1.6092292]
[1765334149812,1.4041,3308.3,3308.2,1.3527]
[1765334150110,2.04802334,3308.5,3308.4,1.3527]
[1765334150611,1.8331,3308.5,3308.4,0.67585107]
[1765334150917,1.8331,3308.5,3308.4,0.00325107]
[1765334151310,2.47790849,3308.5,3308.4,0.00325107]
[1765334151708,2.47790849,3308.5,3308.4,1.35595107]
[1765334153119,1.8331,3308.5,3308.4,1.35595107]
[1765334154218,1.8331,3308.5,3308.4,0.67585107]
[1765334154420,1.8331,3308.5,3308.4,0.00325107]
[1765334154916,3.12062717,3308.5,3308.4,0.00325107]
[1765334155121,2.47702334,3308.5,3308.4,0.00325107]
[1765334156113,1.4037,3308.2,3308.1,0.67643193]
[1765334157016,1.4037,3308.2,3308.1,0.00758274]
[1765334157218,4.6115,3308.2,3308.1,0.00758274]
[1765334157524,4.6115,3308.2,3308.1,1.36968274]
[1765334157915,4.6115,3308.2,3308.1,0.67948274]
[1765334158314,4.6115,3308.2,3308.1,1.36968274]
[1765334159222,4.6115,3308.2,3308.1,0.00758274]
[1765334159722,4.6115,3308.2,3308.1,0.67948274]
[1765334160123,4.6115,3308.2,3308.1,1.36968274]
[1765334160328,4.6115,3308.2,3308.1,0.67948274]
[1765334160524,4.6115,3308.2,3308.1,1.36968274]
[1765334160725,3.9379,3308.2,3308.1,1.36968274]
[1765334160925,3.2078,3308.2,3308.1,1.36968274]
[1765334161222,3.9379,3308.2,3308.1,1.36968274]
[1765334161524,4.6115,3308.2,3308.1,0.67948274]
[1765334162116,4.6115,3308.2,3308.1,0.00758274]
[1765334162313,4.6115,3308.2,3308.1,1.36968274]
[1765334163620,4.6115,3308.2,3308.1,0.67948274]
[1765334164218,4.6115,3308.2,3308.1,1.36968274]
[1765334164921,4.6115,3308.2,3308.1,0.67948274]
[1765334165432,4.6115,3308.2,3308.1,1.36968274]
[1765334165724,5.25542334,3308.2,3308.1,0.00758274]
[1765334166820,4.6663,3308.2,3308.1,1.43208274]
[1765334168522,4.6663,3308.2,3308.1,0.00758274]
[1765334172722,5.31470563,3308.2,3308.1,0.00758274]
[1765334174931,1.4323,3307.6,3307.5,1.4245]
[1765334175228,0.4093,3308.0,3307.7,1.4245]
[1765334175229,4.6401,3307.8,3307.7,1.4245]
[1765334176031,4.64249951,3307.8,3307.7,0.68961893]
[1765334176523,4.64249951,3307.8,3307.7,0.00261893]
[1765334177128,3.21019951,3307.8,3307.7,1.42711893]
[1765334177431,4.64249951,3307.8,3307.7,1.42711893]
[1765334178331,5.29366126,3307.8,3307.7,1.42711893]
[1765334183730,4.56526126,3307.8,3307.7,1.42711893]
[1765334183932,3.86136126,3307.8,3307.7,1.42711893]
[1765334186338,4.53996126,3307.8,3307.7,1.42711893]
[1765334187137,0.00239951,3307.8,3307.7,1.42711893]
[1765334188030,0.68099951,3307.8,3307.7,1.42711893]
[1765334188733,0.00239951,3307.8,3307.7,1.42711893]
[1765334190434,4.58169951,3307.8,3307.7,0.00261893]
[1765334190639,5.23430743,3307.8,3307.7,0.00261893]
[1765334191336,5.23430743,3307.8,3307.7,0.68631893]
[1765334191742,5.23430743,3307.8,3307.7,0.00261893]
[1765334193342,5.23430743,3307.8,3307.7,0.68631893]
[1765334193531,5.23430743,3307.8,3307.7,1.37581893]
[1765334193931,5.23430743,3307.8,3307.7,0.68631893]
[1765334194843,2.02650743,3307.8,3307.7,1.37581893]
[1765334199442,1.33360743,3307.8,3307.7,1.37581893]
[1765334199741,0.68099951,3307.8,3307.7,1.37581893]
[1765334199949,1.37389951,3307.8,3307.7,1.37581893]
[1765334200348,2.02650743,3307.8,3307.7,1.37581893]
[1765334200742,2.02650743,3307.8,3307.7,0.00261893]
[1765334203350,2.02650743,3307.8,3307.7,1.37581893]
[1765334203550,1.33360743,3307.8,3307.7,1.37581893]
[1765334203751,0.00239951,3307.8,3307.7,1.37581893]
[1765334205840,0.68099951,3307.8,3307.7,1.37581893]
[1765334206047,1.37389951,3307.8,3307.7,1.37581893]
[1765334206245,2.02650743,3307.8,3307.7,1.37581893]
[1765334206444,2.02650743,3307.8,3307.7,0.68631893]
[1765334206852,2.02650743,3307.8,3307.7,0.00261893]
[1765334209949,2.26127215,3307.8,3307.7,0.00261893]
[1765334212150,2.26127215,3307.8,3307.7,1.37581893]
[1765334212660,2.26127215,3307.8,3307.7,0.68631893]
[1765334212863,2.26127215,3307.8,3307.7,0.00261893]
[1765334219258,5.46907215,3307.8,3307.7,0.00261893]
[1765334219563,6.14606119,3307.8,3307.7,0.00261893]
[1765334220257,1.8674,3307.5,3307.4,0.00453193]
[1765334220555,2.52000792,3307.5,3307.4,0.67843193]
[1765334221362,2.52000792,3307.5,3307.4,0.00780698]
[1765334221869,2.52000792,3307.5,3307.4,1.42020698]
[1765334223364,2.52000792,3307.5,3307.4,0.68170698]
[1765334223662,1.37260792,3307.5,3307.4,1.42020698]
[1765334223862,2.08350792,3307.5,3307.4,1.42020698]
[1765334224363,2.52000792,3307.5,3307.4,1.42020698]
[1765334225263,2.52000792,3307.5,3307.4,0.68170698]
[1765334226967,2.52000792,3307.5,3307.4,1.42020698]
[1765334228568,2.52000792,3307.5,3307.4,0.68170698]
[1765334228772,2.52000792,3307.5,3307.4,0.00780698]
[1765334232763,0.65260792,3307.5,3307.4,1.47180698]
[1765334233073,2.32741654,3307.7,3307.6,1.464]
[1765334233273,2.32741654,3307.7,3307.6,0.7376]
[1765334235378,2.32741654,3307.7,3307.6,1.464]
[1765334236972,1.62991654,3307.7,3307.6,1.464]
[1765334237371,2.32741654,3307.7,3307.6,1.464]
[1765334238172,0.88731654,3307.7,3307.6,1.464]
[1765334238369,0.65260792,3307.7,3307.6,1.464]
[1765334238569,0.00239951,3307.8,3307.7,1.464]
[1765334238777,0.65500743,3307.8,3307.7,1.464]
[1765334238974,0.74499951,3307.8,3307.7,1.464]
[1765334239178,2.09510743,3307.8,3307.7,1.464]
[1765334239380,2.32995734,3307.8,3307.7,1.464]
[1765334240073,2.32995734,3307.8,3307.7,0.7376]
[1765334240274,1.39760743,3307.8,3307.7,1.464]
[1765334240575,1.44249951,3307.8,3307.7,1.464]
[1765334240775,2.09510743,3307.8,3307.7,1.464]
[1765334241870,0.65500743,3307.8,3307.7,1.464]
[1765334242072,0.00239951,3307.8,3307.7,1.464]
[1765334245478,0.00239951,3307.8,3307.7,2.10867187]
[1765334247479,0.00239951,3307.8,3307.7,5.31647187]
[1765334249079,0.00239951,3307.8,3307.7,6.93128324]
[1765334250577,0.00239951,3307.8,3307.7,5.31647187]
[1765334257785,0.00239951,3307.8,3307.7,4.6718]
[1765334257989,0.73789951,3307.8,3307.7,4.6718]
[1765334258691,1.4068,3307.6,3307.5,0.6863]
[1765334258890,1.8175,3307.5,3307.4,0.69410698]
[1765334259091,1.8175,3307.5,3307.4,1.39340698]
[1765334260995,1.8175,3307.5,3307.4,0.00780698]
[1765334262086,1.8175,3307.5,3307.4,0.69410698]
[1765334262294,2.46569571,3307.5,3307.4,0.00780698]
[1765334262895,1.40919951,3307.8,3307.7,0.6863]
[1765334263092,1.4068,3307.5,3307.4,1.39340698]
[1765334263298,1.8175,3307.5,3307.4,1.39340698]
[1765334264099,1.4068,3307.5,3307.4,1.39340698]
[1765334264599,1.40919951,3307.8,3307.7,1.3856]
[1765334265001,2.05745024,3307.8,3307.7,0.6863]
[1765334265189,1.4068,3307.5,3307.4,1.39340698]
[1765334265600,1.8175,3307.5,3307.4,0.69410698]
[1765334266005,1.8175,3307.5,3307.4,1.39340698]
[1765334266905,0.7355,3307.5,3307.4,1.39340698]
[1765334268105,1.4068,3307.5,3307.4,1.39340698]
[1765334269001,1.8175,3307.5,3307.4,0.00780698]
[1765334269198,2.46576963,3307.5,3307.4,1.39340698]
[1765334269506,2.46576963,3307.5,3307.4,0.69410698]
[1765334269807,2.46576963,3307.5,3307.4,0.00780698]
[1765334271106,2.46576963,3307.5,3306.7,3.8941]
[1765334271107,1.4068,3306.8,3306.7,3.8941]
[1765334271297,1.4068,3306.4,3306.3,4.5934]
[1765334271903,1.4068,3306.4,3306.3,3.8941]
[1765334272108,1.4068,3306.4,3306.3,3.21172073]
[1765334272700,1.4068,3306.4,3306.3,3.89802073]
[1765334272904,1.4068,3306.4,3306.3,4.59732073]
[1765334273811,0.7355,3306.4,3306.3,4.59732073]
[1765334274201,1.4719,3306.4,3306.3,4.59732073]
[1765334276701,1.41613193,3306.7,3306.6,1.4401]
[1765334276902,0.67973193,3306.7,3306.6,1.4401]
[1765334277306,1.41613193,3306.7,3306.6,1.4401]
[1765334280109,0.67973193,3306.7,3306.6,1.4401]
[1765334280604,0.00453193,3306.7,3306.6,2.08477187]
[1765334281806,0.00453193,3306.7,3306.3,3.21172073]
[1765334281807,1.4116,3306.4,3306.3,4.65182073]
[1765334282116,0.6752,3306.4,3306.3,4.65182073]
[1765334282711,0.00453193,3306.7,3306.6,1.4401]
[1765334282915,0.67973193,3306.7,3306.6,1.4401]
[1765334283620,0.00453193,3306.7,3306.6,1.4401]
[1765334284016,3.2078,3307.3,3306.6,1.4401]
[1765334284215,3.2078,3307.3,3307.2,1.4401]
[1765334284720,3.883,3307.3,3307.2,1.4401]
[1765334284919,3.883,3307.3,3307.2,0.7125]
[1765334284920,4.6194,3307.3,3307.2,0.7125]
[1765334285723,3.2078,3307.3,3307.2,1.4401]
[1765334286119,1.38893193,3307.6,3307.5,0.7125]
[1765334286730,1.38893193,3307.6,3307.5,1.452]
[1765334287128,1.38893193,3307.6,3307.5,0.7125]
[1765334288026,1.8517,3307.5,3307.4,0.7451]
[1765334288424,1.8517,3307.5,3307.4,1.4846]
[1765334289129,0.7212,3307.5,3307.4,1.4846]
[1765334289431,1.4304,3307.5,3307.4,1.4846]
[1765334289933,1.8517,3307.5,3307.4,1.4846]
[1765334290133,1.8517,3307.5,3307.4,0.7451]
[1765334290932,0.7212,3307.1,3307.0,2.55277187]
[1765334291725,0.7212,3307.1,3307.0,1.9081]
[1765334291923,1.4304,3307.1,3307.0,1.4846]
[1765334292131,1.4304,3307.1,3306.8,3.2078]
[1765334292132,1.4304,3306.9,3306.8,3.2078]
[1765334292325,1.4304,3306.9,3306.8,3.9529]
[1765334292732,1.4304,3306.9,3306.8,3.2078]
[1765334292923,1.4304,3306.4,3306.3,4.69632073]
[1765334294126,0.7212,3306.4,3306.3,4.69632073]
[1765334294431,0.6494738,3306.9,3306.3,4.69632073]
[1765334294924,0.4213,3307.0,3306.3,4.69632073]
[1765334297030,3.2078,3306.9,3306.3,4.69632073]
[1765334297231,4.6382,3306.9,3306.8,1.4846]
[1765334297429,5.28785536,3306.9,3306.8,1.4846]
[1765334297631,4.6382,3307.3,3307.2,0.7451]
[1765334297832,5.52201025,3307.3,3306.5,0.424]
[1765334298032,2.08005646,3307.2,3306.5,0.424]
[1765334298232,2.08005646,3307.1,3307.0,0.7451]
[1765334298434,0.64965646,3307.1,3307.0,1.9086]
[1765334298621,2.08005646,3307.2,3307.1,1.4846]
[1765334299121,1.4304,3307.2,3307.1,1.4846]
[1765334300222,1.4304,3307.2,3306.5,0.5752]
[1765334300631,1.4304,3307.2,3307.1,1.4846]
[1765334300828,2.08023626,3307.2,3307.1,1.4846]
[1765334301035,3.929,3307.3,3307.2,1.4846]
[1765334301233,5.28803111,3307.3,3307.2,1.4846]
[1765334301531,5.28803111,3307.3,3307.2,0.7451]
[1765334302633,5.28803111,3307.3,3306.5,0.5752]
[1765334302828,2.08023111,3307.2,3307.1,0.7451]
[1765334303938,2.08023111,3307.2,3307.1,1.4846]
[1765334306934,0.64983111,3307.2,3307.1,1.4846]
[1765334307139,1.42583193,3307.6,3307.5,0.7011]
[1765334307341,0.686,3307.1,3307.0,1.8033]
[1765334308035,0.00453193,3307.6,3307.5,1.8033]
[1765334308242,0.65469479,3307.6,3307.5,1.8033]
[1765334308641,1.34069479,3307.6,3307.5,1.8033]
[1765334309438,0.65469479,3307.6,3307.5,1.8033]
[1765334309640,0.00453193,3307.6,3307.5,1.8033]
[1765334310530,0.69053193,3307.6,3307.5,1.8033]
[1765334310935,0.00453193,3307.6,3307.5,1.8033]
[1765334312844,0.69053193,3307.6,3307.5,1.8033]
[1765334313145,0.00453193,3307.6,3307.5,1.8033]
[1765334313337,0.69053193,3307.6,3307.5,1.8033]
[1765334313738,1.34069479,3307.6,3307.5,1.8033]
[1765334313946,0.69053193,3307.6,3307.5,1.8033]
[1765334315748,1.42583193,3307.6,3307.5,1.3834]
[1765334316043,2.07599479,3307.6,3307.5,1.3834]
[1765334318050,1.8483,3307.5,3307.4,0.7011]
[1765334318245,2.49846286,3307.5,3307.4,0.7011]
[1765334318446,1.8483,3307.5,3307.4,0.7011]
[1765334318745,1.8483,3307.5,3307.4,1.3834]
[1765334319646,0.69053193,3307.6,3307.5,1.3834]
[1765334319950,0.69053193,3307.6,3307.5,1.8033]
[1765334320552,0.00453193,3307.6,3307.5,1.8033]
[1765334321350,0.69053193,3307.6,3307.5,1.8033]
[1765334321954,1.8483,3307.5,3307.4,3.2078]
[1765334322156,1.8483,3307.5,3307.4,4.5912]
[1765334323648,1.4213,3307.5,3307.4,4.5912]
[1765334325151,2.4983299,3307.5,3307.4,3.2078]
[1765334325353,2.4983299,3307.5,3307.4,3.9089]
[1765334326056,2.4983299,3307.5,3307.4,4.5912]
[1765334327856,2.4983299,3307.5,3307.4,3.2078]
[1765334328057,2.4983299,3307.5,3307.4,3.9089]
[1765334328258,2.4983299,3307.5,3307.4,3.2078]
[1765334328454,2.4983299,3307.5,3307.4,3.9089]
[1765334328852,2.4983299,3307.5,3307.4,0.7011]
[1765334329054,2.4983299,3307.5,3307.0,2.18589137]
[1765334329264,0.686,3307.1,3307.0,3.56929137]
[1765334329773,2.0713299,3307.4,3307.3,0.7011]
[1765334330069,2.0713299,3307.4,3307.3,1.3834]
[1765334333571,2.0713299,3307.4,3307.3,0.7011]
[1765334333975,1.4079,3307.1,3307.0,1.61481137]
[1765334334268,1.4163,3307.0,3306.9,4.5966]
[1765334334574,0.6884,3307.0,3306.9,4.5966]
[1765334335275,2.06724162,3307.4,3307.3,0.7135]
[1765334336471,2.06724162,3307.4,3307.3,1.3888]
[1765334336668,2.06724162,3307.4,3307.0,1.62722491]
[1765334336873,1.4163,3306.8,3306.7,1.53999]
[1765334337364,2.06724162,3306.8,3306.7,1.53999]
[1765334337970,1.33934162,3306.8,3306.7,1.53999]
[1765334338181,0.6884,3306.8,3306.7,1.53999]
[1765334343286,1.4163,3306.8,3306.7,0.86469]
[1765334343482,1.4163,3306.8,3306.7,1.53999]
[1765334344788,0.6884,3306.6,3306.5,4.5966]
[1765334344980,1.4163,3306.6,3306.5,4.5966]
[1765334345880,1.8636,3307.0,3306.9,0.7135]
[1765334346080,1.8636,3307.0,3306.5,5.0107]
[1765334346081,0.6884,3306.6,3306.5,5.0107]
[1765334346779,2.06631054,3306.9,3306.8,1.3888]
[1765334347185,1.4163,3306.9,3306.8,1.3888]
[1765334348582,0.6884,3306.9,3306.8,1.3888]
[1765334348983,1.4163,3306.9,3306.8,1.3888]
[1765334350189,0.6884,3306.9,3306.8,1.3888]
[1765334350391,1.3694,3307.0,3306.9,1.3888]
[1765334350685,0.6793,3307.2,3307.1,0.6785]
[1765334350880,0.6793,3307.2,3307.1,1.3729]
[1765334351390,0.64980504,3307.2,3307.1,1.3729]
[1765334351591,0.427,3307.5,3307.4,0.6944]
[1765334351592,2.43710504,3307.5,3307.4,0.6944]
[1765334351890,2.67154984,3307.5,3307.4,0.6944]
[1765334352284,2.67154984,3307.5,3307.4,1.3729]
[1765334354291,2.67154984,3307.5,3307.4,0.6944]
[1765334355086,2.67154984,3307.5,3307.0,0.4394]
[1765334355285,2.01010504,3307.4,3307.3,0.6944]
[1765334355685,0.681,3307.1,3307.0,1.3729]
[1765334355892,1.3603,3307.1,3307.0,1.3729]
[1765334356296,1.7873,3307.5,3307.4,1.3729]
[1765334356499,2.67180847,3307.5,3307.4,1.3729]
[1765334356991,2.43729326,3307.5,3307.4,1.3729]
[1765334358182,2.01029326,3307.5,3307.4,1.3729]
[1765334359288,1.32929326,3307.5,3307.4,1.3729]
[1765334359490,0.6793,3307.5,3307.4,1.3729]
[1765334362692,0.00453193,3307.6,3307.5,1.3729]
[1765334362693,0.68383193,3307.6,3307.5,1.3729]
[1765334363193,0.00453193,3307.6,3307.5,1.7995]
[1765334363596,1.4194,3307.4,3307.3,4.6369]
[1765334363897,0.7355,3307.4,3307.3,4.6369]
[1765334364099,1.42393193,3307.6,3307.5,1.4291]
[1765334364300,2.07393246,3307.6,3307.5,1.4291]
[1765334364594,1.39003246,3307.6,3307.5,1.4291]
[1765334364899,0.74003193,3307.6,3307.5,1.4291]
[1765334365098,1.42393193,3307.6,3307.5,1.4291]
[1765334365302,1.4194,3307.4,3307.3,0.7092]
[1765334365600,1.4194,3307.1,3307.0,1.4291]
[1765334367397,0.7355,3307.1,3307.0,1.4291]
[1765334368002,1.4194,3307.1,3307.0,1.4291]
[1765334368798,1.4194,3307.1,3306.9,3.2078]
[1765334368799,1.4194,3306.8,3306.7,2.33642491]
[1765334368994,1.4194,3306.8,3306.7,1.4291]
[1765334370494,0.7355,3306.8,3306.7,1.4291]
[1765334370695,1.4194,3307.0,3306.9,1.4291]
[1765334371096,2.06950198,3307.0,3306.9,1.4291]
[1765334372206,0.65010198,3307.0,3306.9,1.4291]
[1765334372501,2.06950198,3307.2,3307.1,1.4291]
[1765334376307,1.38560198,3307.2,3307.1,1.4291]
[1765334376500,0.00453193,3307.6,3307.5,1.4291]
[1765334376706,2.07297309,3307.6,3307.5,1.4291]
[1765334378202,1.38907309,3307.6,3307.5,1.4291]
[1765334378407,1.38907309,3307.6,3307.5,1.8557]
[1765334378606,0.74003193,3307.6,3307.5,1.8557]
[1765334379408,0.00453193,3307.6,3307.5,1.8557]
[1765334379611,1.42393193,3307.6,3307.5,1.4291]
[1765334380212,2.07297309,3307.6,3307.5,1.4291]
[1765334380715,1.38907309,3307.6,3307.5,1.8557]
[1765334381110,0.74003193,3307.6,3307.5,1.8557]
[1765334381308,1.42393193,3307.6,3307.5,1.8557]
[1765334381722,1.38907309,3307.6,3307.5,1.8557]
[1765334382118,0.74003193,3307.6,3307.5,1.8557]
[1765334383018,0.00453193,3307.6,3307.5,1.8557]
[1765334385522,0.74003193,3307.6,3307.5,1.8557]
[1765334386227,0.00453193,3307.6,3307.5,1.8557]
[1765334387933,1.42393193,3307.6,3307.5,1.8557]
[1765334388431,0.74003193,3307.6,3307.5,1.8557]
[1765334389431,1.38907309,3307.6,3307.5,1.8557]
[1765334389632,0.74003193,3307.6,3307.5,1.8557]
[1765334390428,1.38907309,3307.6,3307.5,1.8557]
[1765334390630,0.74003193,3307.6,3307.5,1.8557]
[1765334391336,0.00453193,3307.6,3307.5,1.8557]
[1765334392135,0.74003193,3307.6,3307.5,1.8557]
[1765334392532,1.42393193,3307.6,3307.5,1.8557]
[1765334393034,1.42393193,3307.6,3307.5,0.7092]
[1765334393235,1.42393193,3307.6,3307.5,1.4208]
[1765334394331,1.3513,3307.4,3307.3,3.2078]
[1765334394536,2.00017909,3307.4,3307.3,4.6064]
[1765334394945,2.00017909,3307.4,3307.3,3.2078]
[1765334395436,2.00017909,3307.4,3307.3,4.6064]
[1765334401042,2.00017909,3307.4,3307.3,3.2078]
[1765334401645,2.00017909,3307.4,3307.3,3.8948]
[1765334402634,1.3513,3306.9,3306.8,3.02582491]
[1765334402837,1.3513,3306.9,3306.8,1.3986]
[1765334403234,1.3513,3306.9,3306.6,1.62722491]
[1765334403432,0.4093,3307.0,3306.6,1.3986]
[1765334403433,1.3513,3306.7,3306.6,1.3986]
[1765334404148,1.3513,3306.7,3306.6,0.687]
[1765334404443,1.99956288,3306.7,3306.6,0.687]
[1765334404641,1.99956288,3306.7,3306.6,1.3986]
[1765334407040,1.32856288,3306.7,3306.6,1.3986]
[1765334407343,0.6803,3306.7,3306.6,1.3986]
[1765334407947,1.3781,3306.7,3306.6,1.3986]
[1765334412751,1.3781,3306.7,3306.6,0.687]
[1765334413350,1.3781,3306.7,3306.6,1.401]
[1765334415154,0.6803,3306.7,3306.6,1.401]
[1765334417156,1.3781,3306.7,3306.6,1.401]
[1765334418962,0.6803,3306.7,3306.6,1.401]
[1765334419567,1.3781,3306.7,3306.6,1.401]
[1765334426056,2.02596688,3306.7,3306.6,1.401]
[1765334430570,2.00936688,3306.7,3306.6,1.401]
[1765334431073,2.00936688,3306.7,3306.6,1.4013]
[1765334431868,1.32816688,3306.7,3306.6,1.4013]
[1765334432072,1.3678,3306.9,3306.8,1.4116]
[1765334432278,2.25145714,3306.9,3306.8,1.4116]
[1765334432663,2.25145714,3306.9,3306.8,0.6973]
[1765334434676,2.25145714,3306.9,3306.8,1.4116]
[1765334436381,2.25145714,3306.9,3306.8,0.6973]
[1765334438477,0.88365714,3306.9,3306.4,2.34152491]
[1765334438776,1.3678,3306.5,3306.4,1.4116]
[1765334438972,1.8077,3306.5,3306.4,1.4116]
[1765334439178,2.45663665,3306.5,3306.4,1.4116]
[1765334441582,1.33553665,3306.5,3306.4,1.4116]
[1765334441880,2.01713725,3306.9,3306.8,0.6973]
[1765334442180,2.25211908,3306.9,3306.8,0.6973]
[1765334442681,2.25211908,3306.9,3306.8,1.4116]
[1765334443879,0.88431908,3306.9,3306.8,1.4116]
[1765334444181,3.2078,3307.1,3307.0,1.838]
[1765334444368,4.77841729,3307.1,3307.0,1.838]
[1765334444567,5.45961729,3307.1,3307.0,1.4116]
[1765334445274,5.22470161,3307.1,3307.0,1.4116]
[1765334445478,2.01690161,3307.1,3307.0,1.4116]
[1765334446378,1.3678,3306.8,3306.7,3.2078]
[1765334446578,1.3678,3306.4,3306.3,0.00392073]
[1765334446884,2.25171064,3306.4,3306.3,0.00392073]
[1765334447285,5.45951064,3306.4,3306.3,0.00392073]
[1765334454583,1.3685,3306.1,3306.0,0.00453193]
[1765334454780,1.60282712,3306.1,3306.0,0.00453193]
[1765334454975,2.25192873,3306.1,3306.0,0.00453193]
[1765334455589,2.25192873,3306.1,3306.0,0.00286643]
[1765334455791,1.3685,3305.4,3305.3,3.9223]
[1765334456790,1.37116029,3305.4,3305.3,0.00292428]
[1765334456990,1.37116029,3305.4,3305.3,0.71742428]
[1765334457292,0.00266029,3305.4,3305.3,1.42792428]
[1765334457983,1.37116029,3305.4,3305.3,1.42792428]
[1765334458391,1.37116029,3305.4,3305.3,0.71742428]
[1765334458783,1.37116029,3305.4,3305.3,0.00292428]
[1765334459386,1.37116029,3305.4,3305.3,0.71742428]
[1765334459893,1.37116029,3305.4,3305.3,0.00292428]
[1765334460289,1.37116029,3305.4,3305.3,1.42792428]
[1765334460593,0.00266029,3305.4,3305.3,1.42792428]
[1765334460888,0.69736029,3305.4,3305.3,1.42792428]
[1765334461094,0.00266029,3305.4,3305.3,4.63572428]
[1765334461290,1.37116029,3305.4,3305.3,4.63572428]
[1765334461885,1.37116029,3305.4,3305.3,3.21072428]
[1765334463690,1.37116029,3305.4,3305.3,3.92522428]
[1765334465695,1.37116029,3305.4,3305.3,4.63572428]
[1765334465890,1.37116029,3305.4,3305.3,1.42792428]
[1765334467498,1.37116029,3305.4,3305.3,1.47452428]
[1765334468196,0.00266029,3305.4,3305.3,1.47452428]
[1765334468390,0.69646029,3305.4,3305.3,1.47452428]
[1765334468692,0.00266029,3305.4,3305.3,1.47452428]
[1765334474794,3.07123303,3305.8,3305.7,1.4716]
[1765334475103,3.9016,3306.3,3306.2,1.4716]
[1765334475898,3.90438849,3306.3,3306.2,1.4716]
[1765334476097,3.85974365,3306.3,3306.2,1.4716]
[1765334476296,3.21058849,3306.3,3306.2,1.4716]
[1765334476493,3.90438849,3306.3,3306.2,1.4716]
[1765334477297,3.21058849,3306.3,3306.2,1.4716]
[1765334478105,0.00278849,3306.3,3306.2,1.4716]
[1765334478995,0.69658849,3306.3,3306.2,1.4716]
[1765334479703,0.00278849,3306.3,3306.2,1.4716]
[1765334479896,0.69658849,3306.3,3306.2,1.4716]
[1765334480305,1.39558849,3306.3,3306.2,1.4716]
[1765334481007,0.69658849,3306.3,3306.2,1.4716]
[1765334481805,1.3928,3306.1,3306.0,4.6794]
[1765334482200,0.69658849,3306.3,3306.2,1.4716]
[1765334482705,0.00278849,3306.3,3306.2,1.4716]
[1765334482908,0.69658849,3306.3,3306.2,1.4716]
[1765334483407,0.00278849,3306.3,3306.2,1.4716]
[1765334485408,1.45728849,3306.3,3306.2,1.4716]
[1765334485800,0.72228849,3306.3,3306.2,1.4716]
[1765334486310,0.00278849,3306.3,3306.2,1.4716]
[1765334487717,1.45728849,3306.3,3306.2,1.4716]
[1765334488011,0.00278849,3306.3,3306.2,1.4716]
[1765334498013,1.45728849,3306.3,3306.2,1.4716]
[1765334498918,0.72228849,3306.3,3306.2,1.4716]
[1765334499112,0.00278849,3306.3,3306.2,1.4716]
[1765334499718,0.72228849,3306.3,3306.2,1.4716]
[1765334500020,0.00278849,3306.3,3306.2,1.4716]
[1765334501621,0.72228849,3306.3,3306.2,1.4716]
[1765334501816,1.4545,3306.2,3306.1,0.15122]
[1765334502020,1.4545,3306.2,3306.1,1.57712]
[1765334502416,0.7195,3306.2,3306.1,1.57712]
[1765334503418,1.4545,3306.2,3306.1,1.57712]
[1765334504817,0.00278849,3306.3,3306.0,5.0545]
[1765334504818,0.7195,3306.1,3306.0,5.0545]
[1765334505223,1.45728849,3306.3,3306.2,1.4259]
[1765334505519,2.10637005,3306.3,3306.2,1.4259]
[1765334506726,2.10637005,3306.3,3306.2,0.6988]
[1765334507224,2.10637005,3306.3,3306.2,1.4259]
[1765334507724,0.65187005,3306.3,3306.2,1.4259]
[1765334507923,0.00278849,3306.3,3306.2,1.4259]
[1765334508524,0.72228849,3306.3,3306.2,1.4259]
[1765334508926,0.00278849,3306.3,3306.2,1.4259]
[1765334513927,1.39918849,3306.3,3306.2,0.6988]
[1765334514127,1.39918849,3306.3,3306.2,1.4013]
[1765334514430,0.72228849,3306.3,3306.2,1.4013]
[1765334515432,0.00278849,3306.3,3306.2,1.4013]
[1765334519238,0.00278849,3306.3,3306.2,2.04639766]
[1765334522732,0.00278849,3306.3,3306.2,1.4013]
[1765334522933,0.00278849,3306.3,3306.2,2.04639766]
[1765334523431,0.00278849,3306.3,3306.2,1.4013]
[1765334524122,0.00278849,3306.3,3306.2,2.04639766]
[1765334526136,0.00278849,3306.3,3306.2,2.19760766]
[1765334529735,0.00278849,3306.3,3306.2,1.55251]
[1765334530239,1.42468849,3306.3,3306.2,3.18151729]
[1765334532741,0.00278849,3306.3,3306.2,3.18151729]
[1765334533537,0.68268849,3306.3,3306.2,3.18151729]
[1765334533845,1.42468849,3306.3,3306.2,1.55251]
[1765334535143,1.42468849,3306.3,3306.2,0.6988]
[1765334535447,1.42468849,3306.3,3306.2,1.4382]
[1765334535639,1.29537151,3306.3,3306.0,3.2078]
[1765334535838,1.4219,3306.1,3306.0,3.2078]
[1765334536240,0.41,3306.0,3305.6,3.2078]
[1765334536446,1.4219,3305.7,3305.6,3.2078]
[1765334536844,2.06949936,3305.7,3305.6,3.2078]
[1765334537537,2.06949936,3305.7,3305.6,3.9141]
[1765334538940,2.71459702,3305.7,3305.6,3.2078]
[1765334539144,1.4219,3305.4,3305.3,0.70922428]
[1765334540044,1.4219,3305.4,3305.3,0.00292428]
[1765334540946,1.4219,3305.4,3305.3,0.70922428]
[1765334541652,1.4219,3305.4,3305.3,1.44862428]
[1765334543144,1.4219,3305.4,3305.3,0.70922428]
[1765334545045,1.4219,3305.4,3305.3,0.00292428]
[1765334547359,1.4219,3305.4,3305.3,0.68792428]
[1765334547961,1.4219,3305.4,3305.3,0.00292428]
[1765334549862,1.4219,3305.4,3305.3,1.42852428]
[1765334553857,1.4219,3305.4,3305.3,0.68792428]
[1765334554066,1.4219,3305.4,3305.3,1.42852428]
[1765334557367,0.6799,3305.4,3305.3,1.42852428]
[1765334557661,2.08502827,3305.4,3305.3,0.00292428]
[1765334557864,2.7315891,3305.4,3305.3,0.00292428]
[1765334558166,1.4014,3304.8,3304.7,3.8928]
[1765334558865,1.4014,3304.8,3304.7,3.2078]
[1765334559064,1.4014,3304.4,3304.3,4.6334]
[1765334559367,1.4014,3304.4,3304.3,4.63577493]
[1765334559569,0.6742,3304.4,3304.3,4.63577493]
[1765334559867,1.40593892,3304.7,3304.6,0.685]